lending/lending_fUSD_20260411
["ID","MTS","AMOUNT","RATE_DAILY","PERIOD"]
[420283922,1775910641051,-500.0,0.00013698,2]
[420283923,1775910641060,-500.0,0.00013698,2]
[420283924,1775910641070,-500.0,0.00013698,2]
[420283926,1775910641079,-500.0,0.00013698,2]
[420283927,1775910641093,-500.0,0.00013698,2]
[420283928,1775910641102,-500.0,0.00013698,2]
[420283929,1775910641111,-500.0,0.00013698,2]
[420283930,1775910641121,-500.0,0.00013698,2]
[420283931,1775910641136,-500.0,0.00013698,2]
[420283932,1775910641146,-500.0,0.00013698,2]
[420283933,1775910641156,-504.47726605,0.00013698,2]
[420283934,1775910641165,-500.0,0.00013698,2]
[420283935,1775910641181,-500.0,0.00013698,2]
[420283936,1775910641191,-500.0,0.00013698,2]
[420283937,1775910641200,-500.0,0.00013698,2]
[420283938,1775910641209,-500.0,0.00013698,2]
[420283939,1775910641225,-500.0,0.00013698,2]
[420283940,1775910641234,-469.56366676,0.00013698,2]
[420283941,1775910641243,-313.53120942,0.00013698,2]
[420283942,1775910641252,-500.0,0.00013698,2]
[420283943,1775910641261,-500.0,0.00013698,2]
[420283944,1775910641272,-500.0,0.00013698,2]
[420283945,1775910641281,-500.0,0.00013698,2]
[420283946,1775910641290,-500.0,0.00013698,2]
[420283947,1775910641301,-500.0,0.00013698,2]
[420283948,1775910641311,-500.0,0.00013698,2]
[420283949,1775910641320,-500.0,0.00013698,2]
[420283950,1775910641329,-500.0,0.00013698,2]
[420283951,1775910641338,-500.0,0.00013698,2]
[420283952,1775910641357,-502.06502755,0.00013698,2]
[420283953,1775910641368,-500.0,0.00013698,2]
[420283954,1775910641378,-500.0,0.00013698,2]
[420283955,1775910641388,-616.16,0.00013698,2]
[420283956,1775910641397,-500.0,0.00013698,2]
[420283957,1775910641406,-500.0,0.00013698,2]
[420283958,1775910641418,-500.0,0.00013698,2]
[420283959,1775910641428,-500.0,0.00013698,2]
[420283960,1775910641438,-500.0,0.00013698,2]
[420283961,1775910641447,-378.03861837,0.00013698,2]
[420283962,1775910641459,-500.0,0.00013698,2]
[420283963,1775910641469,-591.60274643,0.00013698,2]
[420283964,1775910641478,-2243.47,0.00013698,2]
[420283965,1775910641488,-2243.47,0.00013698,2]
[420283966,1775910641497,-2243.47,0.00013698,2]
[420283967,1775910641510,-2243.47,0.00013698,2]
[420283968,1775910641519,-2243.47,0.00013698,2]
[420283969,1775910641529,-2243.47,0.00013698,2]
[420283970,1775910641540,-2243.47,0.00013698,2]
[420283971,1775910641555,-2243.47,0.00013698,2]
[420283972,1775910641565,-2243.47,0.00013698,2]
[420283973,1775910641578,-2243.47,0.00013698,2]
[420283974,1775910641591,-2243.47,0.00013698,2]
[420283975,1775910641602,-595.14,0.00013698,2]
[420283976,1775910641617,-595.14,0.00013698,2]
[420283977,1775910641626,-595.14,0.00013698,2]
[420283978,1775910641647,-595.14,0.00013698,2]
[420283979,1775910641660,-595.14,0.00013698,2]
[420283980,1775910641674,-595.14,0.00013698,2]
[420283981,1775910641689,-595.14,0.00013698,2]
[420283982,1775910641703,-595.14,0.00013698,2]
[420283983,1775910641717,-595.14,0.00013698,2]
[420283984,1775910641734,-595.14,0.00013698,2]
[420283985,1775910641749,-595.14,0.00013698,2]
[420283986,1775910641766,-595.14,0.00013698,2]
[420283987,1775910641785,-595.14,0.00013698,2]
[420283988,1775910641794,-595.14,0.00013698,2]
[420283989,1775910641820,-500.0,0.00013698,2]
[420283990,1775910641831,-500.0,0.00013698,2]
[420283991,1775910641843,-610.51655341,0.00013698,2]
[420283992,1775910641873,-500.0,0.00013698,2]
[420283993,1775910641889,-500.0,0.00013698,2]
[420283994,1775910641922,-500.0,0.00013698,2]
[420283995,1775910641949,-150.0,0.00013699,2]
[420283996,1775910641984,-150.0,0.00013699,2]
[420283997,1775910642042,-150.0,0.00013699,2]
[420283998,1775910642087,-150.0,0.00013699,2]
[420283999,1775910642125,-200.0,0.00013699,2]
[420284000,1775910642152,-166.66,0.00013699,2]
[420284001,1775910642174,-500.8210711,0.00013699,2]
[420284002,1775910642193,-539.23821967,0.00013699,2]
[420284003,1775910642219,-500.0,0.00013699,2]
[420284004,1775910642239,-500.0,0.00013699,2]
[420284005,1775910642258,-500.0,0.00013699,2]
[420284006,1775910642271,-500.0,0.00013699,2]
[420284007,1775910642286,-500.0,0.00013699,2]
[420284008,1775910642313,-500.23571396,0.00013699,2]
[420284009,1775910642326,-500.0,0.00013699,2]
[420284010,1775910642354,-500.0,0.00013699,2]
[420284011,1775910642365,-500.0,0.00013699,2]
[420284012,1775910642374,-500.0,0.00013699,2]
[420284013,1775910642407,-500.0,0.00013699,2]
[420284014,1775910642417,-500.0,0.00013699,2]
[420284015,1775910642445,-500.34563558,0.00013699,2]
[420284016,1775910642457,-500.0,0.00013699,2]
[420284017,1775910642484,-408.2976051,0.00013699,2]
[420284018,1775910642494,-500.0,0.00013699,2]
[420284019,1775910642510,-159.91128081,0.00013699,2]
[420284020,1775910642528,-1000.0,0.00013699,7]
[420284021,1775910642538,-166.64882988,0.00013699,2]
[420284022,1775910642555,-213.21360103,0.00013699,2]
[420284023,1775910642571,-502.53017387,0.00013699,2]
[420284024,1775910642581,-500.0,0.00013699,2]
[420284025,1775910642600,-500.0,0.00013699,2]
[420284026,1775910642610,-500.0,0.00013699,2]
[420284027,1775910642619,-500.31274352,0.00013699,2]
[420284028,1775910642633,-500.0,0.00013699,2]
[420284029,1775910642648,-500.0,0.00013699,2]
[420284030,1775910642662,-500.0,0.00013699,2]
[420284031,1775910642673,-500.0,0.00013699,2]
[420284032,1775910642691,-294.37845278,0.00013699,2]
[420284033,1775910642702,-500.0,0.00013699,2]
[420284034,1775910642713,-500.0,0.00013699,2]
[420284035,1775910642723,-369.89425416,0.00013699,2]
[420284036,1775910642739,-500.0,0.00013699,2]
[420284037,1775910642753,-500.0,0.00013699,2]
[420284038,1775910642763,-500.0,0.00013699,2]
[420284039,1775910642798,-500.0,0.00013699,2]
[420284040,1775910642810,-500.0,0.00013699,2]
[420284041,1775910642837,-500.0,0.00013699,2]
[420284042,1775910642850,-500.0,0.00013699,2]
[420284043,1775910642879,-500.0,0.00013699,2]
[420284044,1775910642892,-500.0,0.00013699,2]
[420284045,1775910642917,-221.0,0.00013699,2]
[420284046,1775910642932,-166.66,0.00013836,2]
[420284047,1775910642947,-15817.75494107,0.00013927,2]
[420284048,1775910642967,-150.0,0.00013973,2]
[420284049,1775910642981,-150.0,0.00013973,2]
[420284050,1775910642994,-150.0,0.00013973,2]
[420284051,1775910643010,-166.66,0.00013973,2]
[420284052,1775910643021,-1193.098224,0.00014096,7]
[420284053,1775910643032,-509.750503,0.00014096,7]
[420284054,1775910643044,-166.66,0.0001411,2]
[420284056,1775910643053,-1001.08979,0.0001413,2]
[420284057,1775910643063,-166.66,0.00014247,2]
[420284059,1775910643072,-150.0,0.00014247,2]
[420284060,1775910643082,-1000.0,0.00014247,2]
[420284061,1775910643092,-1081.17432582,0.00014247,2]
[420284062,1775910643101,-1020.13451885,0.00014247,2]
[420284063,1775910643111,-1000.0,0.00014247,2]
[420284064,1775910643120,-1000.0,0.00014247,2]
[420284065,1775910643129,-1000.0,0.00014247,2]
[420284066,1775910643139,-1139.0,0.00014252,2]
[420284067,1775910643149,-786.31,0.00014262,2]
[420284068,1775910643159,-1574.0,0.00014318,2]
[420284069,1775910643168,-9236.96688737,0.00014363,2]
[420284070,1775910643178,-166.66,0.00014384,2]
[420284071,1775910643190,-162.0,0.000144,2]
[420284072,1775910643199,-786.31,0.00014536,2]
[420284073,1775910643209,-986.35,0.00014562,2]
[420284074,1775910643223,-232.0712,0.000146,2]
[420284075,1775910643233,-1574.0,0.0001461,2]
[420284078,1775910643244,-506.0,0.00014656,3]
[420284080,1775910643254,-1574.0,0.0001472,2]
[420284082,1775910643268,-1500.0,0.00014795,2]
[420284084,1775910643281,-1500.0,0.00014795,2]
[420284086,1775910643290,-1500.0,0.00014795,2]
[420284088,1775910643305,-553.81547268,0.00014795,2]
[420284090,1775910643315,-786.31,0.0001481,2]
[420284092,1775910643327,-258.0,0.00014833,5]
[420284093,1775910643337,-986.35,0.00014836,2]
[420284094,1775910643350,-483.75,0.00014958,2]
[420284095,1775910643362,-172.88,0.00014971,2]
[420284096,1775910643374,-628.67,0.00015,2]
[420284097,1775910643383,-1892.0,0.00015,2]
[420284098,1775910643397,-300.0,0.00015,2]
[420284099,1775910643414,-3240.0,0.00015,2]
[420284100,1775910643424,-278.43,0.00015068,2]
[420284101,1775910643434,-800.0,0.00015068,2]
[420284102,1775910643456,-786.31,0.00015084,2]
[420284103,1775910643467,-986.35,0.0001511,2]
[420284104,1775910643477,-15817.75494107,0.00015121,2]
[420284105,1775910643491,-154.0,0.00015166,5]
[420284106,1775910643504,-557.0,0.00015166,5]
[420284107,1775910643514,-4457.14,0.00015205,2]
[420284108,1775910643526,-595.14,0.00015231,2]
[420284109,1775910643541,-879.82,0.00015285,2]
[420284110,1775910643561,-2539.81847,0.00015295,2]
[420284111,1775910643572,-2000.0,0.000153,2]
[420284112,1775910643592,-762.73155127,0.00015342,2]
[420284113,1775910643608,-934.59549217,0.00015342,2]
[420284114,1775910643620,-2000.0,0.00015342,2]
[420284115,1775910643643,-786.31,0.00015357,2]
[420284116,1775910643659,-162.0,0.0001536,2]
[420284117,1775910643670,-436.0,0.0001536,2]
[420284118,1775910643691,-986.35,0.00015384,2]
[420284119,1775910643703,-2000.0,0.000154,2]
[420284120,1775910643716,-620.411076,0.00015438,7]
[420284121,1775910643737,-265.070261,0.00015439,7]
[420284122,1775910643752,-2243.47,0.00015452,2]
[420284123,1775910643768,-1235.18214925,0.00015453,2]
[420284124,1775910643787,-578.20924308,0.00015453,2]
[420284125,1775910643802,-200.0,0.00015453,2]
[420284126,1775910643818,-601.3376128,0.00015453,2]
[420284127,1775910643846,-181.08010149,0.00015453,2]
[420284128,1775910643863,-303.98027082,0.00015453,2]
[420284129,1775910643882,-743.50770149,0.00015453,2]
[420284130,1775910643902,-174.61919141,0.00015453,2]
[420284131,1775910643923,-205.09085741,0.00015453,2]
[420284132,1775910643940,-151.0,0.00015453,2]
[420284133,1775910643973,-151.0,0.00015453,2]
[420284134,1775910643987,-500.0,0.00015453,2]
[420284135,1775910644022,-151.0,0.00015453,2]
[420284136,1775910644050,-500.0,0.00015453,2]
[420284137,1775910644075,-151.0,0.00015453,2]
[420284138,1775910644129,-157.93972627,0.00015453,2]
[420284139,1775910644161,-500.0,0.00015453,2]
[420284140,1775910644202,-151.0,0.00015453,2]
[420284141,1775910644227,-500.0,0.00015453,2]
[420284142,1775910644255,-156.587,0.00015453,2]
[420284144,1775910644279,-500.0,0.00015453,2]
[420284145,1775910644294,-500.0,0.00015453,2]
[420284146,1775910644304,-500.0,0.00015453,2]
[420284147,1775910644323,-500.0,0.00015453,2]
[420284148,1775910644337,-500.0,0.00015453,2]
[420284149,1775910644347,-500.0,0.00015453,2]
[420284150,1775910644359,-500.0,0.00015453,2]
[420284151,1775910644373,-500.0,0.00015453,2]
[420284152,1775910644383,-500.0,0.00015453,2]
[420284153,1775910644393,-500.0,0.00015453,2]
[420284154,1775910644406,-500.0,0.00015453,2]
[420284155,1775910644417,-151.0,0.00015453,2]
[420284156,1775910644428,-541.79561884,0.00015453,2]
[420284157,1775910644438,-195.67121824,0.00015453,2]
[420284158,1775910644450,-170.0,0.00015453,2]
[420284159,1775910644466,-170.0,0.00015453,2]
[420284160,1775910644510,-170.0,0.00015453,2]
[420284161,1775910644536,-500.0,0.00015453,2]
[420284162,1775910644555,-170.0,0.00015453,2]
[420284163,1775910644579,-599.60298507,0.00015453,2]
[420284164,1775910644602,-500.0,0.00015453,2]
[420284165,1775910644627,-170.0,0.00015453,2]
[420284166,1775910644654,-500.0,0.00015453,2]
[420284167,1775910644684,-170.0,0.00015453,2]
[420284168,1775910644703,-500.0,0.00015453,2]
[420284169,1775910644728,-170.0,0.00015453,2]
[420284170,1775910644747,-500.0,0.00015453,2]
[420284171,1775910644772,-170.0,0.00015453,2]
[420284172,1775910644793,-500.0,0.00015453,2]
[420284173,1775910644818,-170.0,0.00015453,2]
[420284174,1775910644842,-500.0,0.00015453,2]
[420284175,1775910644869,-170.0,0.00015453,2]
[420284176,1775910644886,-500.0,0.00015453,2]
[420284177,1775910644907,-170.0,0.00015453,2]
[420284178,1775910644926,-500.0,0.00015453,2]
[420284179,1775910644947,-170.0,0.00015453,2]
[420284180,1775910644964,-500.0,0.00015453,2]
[420284181,1775910644984,-170.0,0.00015453,2]
[420284182,1775910645000,-279.9045709,0.00015453,2]
[420284183,1775910645025,-257.78334592,0.00015453,2]
[420284184,1775910645039,-170.0,0.00015453,2]
[420284185,1775910645055,-170.0,0.00015453,2]
[420284186,1775910645072,-636.32242995,0.00015462,2]
[420284187,1775910645087,-932.79,0.00015471,2]
[420284188,1775910645102,-9438.24,0.00015471,2]
[420284189,1775910645124,-11127.54,0.00015471,2]
[420284190,1775910645143,-1525.16,0.00015471,2]
[420284191,1775910645169,-520.56669,0.00015476,2]
[420284192,1775910645184,-2723.91003409,0.000155,2]
[420284193,1775910645229,-2000.0,0.000155,2]
[420284194,1775910645246,-1489.47,0.00015507,2]
[420284195,1775910645262,-151.0,0.00015508,2]
[420284196,1775910645276,-151.0,0.00015563,2]
[420284197,1775910645295,-652.40522126,0.00015573,2]
[420284198,1775910645310,-160.0,0.00015577,2]
[420284199,1775910645329,-500.0,0.00015599,2]
[420284200,1775910645343,-500.0,0.00015599,2]
[420284201,1775910645358,-500.0,0.00015599,2]
[420284202,1775910645377,-500.0,0.00015599,2]
[420284203,1775910645392,-2243.47,0.00015599,2]
[420284204,1775910645405,-2243.47,0.00015599,2]
[420284205,1775910645422,-2243.47,0.00015599,2]
[420284206,1775910645435,-2243.47,0.00015599,2]
[420284207,1775910645452,-595.14,0.00015599,2]
[420284208,1775910645466,-595.14,0.00015599,2]
[420284209,1775910645481,-595.14,0.00015599,2]
[420284210,1775910645496,-595.14,0.00015599,2]
[420284211,1775910645511,-785490.68148,0.000156,2]
[420284216,1775910648032,-689.43472273,0.000156,2]
[420284217,1775910648087,-47849.03429514,0.000156,2]
[420284218,1775910648156,-2117.8132032,0.000156,2]
[420284219,1775910648205,-1132.68254729,0.000156,2]
[420284220,1775910648319,-151.0,0.00013668,2]
[420284221,1775910648335,-500.0,0.00013698,2]
[420284222,1775910648347,-1787.15312271,0.000156,2]
[420284223,1775910648629,-200.0,8.7e-05,3]
[420284224,1775910648638,-160.0,0.00013424,2]
[420284225,1775910648648,-1457.84066,0.00013424,2]
[420284226,1775910648657,-151.0,0.00013668,2]
[420284227,1775910648666,-151.0,0.00013668,2]
[420284228,1775910648676,-151.0,0.00013668,2]
[420284229,1775910648685,-151.0,0.00013668,2]
[420284230,1775910648695,-500.71926459,0.00013698,2]
[420284231,1775910648704,-127402.92890967,0.000156,2]
[420284232,1775910648714,-2000.0,0.000156,2]
[420284233,1775910648723,-151.0,0.00015618,2]
[420284234,1775910648732,-786.31,0.00015631,2]
[420284235,1775910648741,-986.35,0.00015658,2]
[420284236,1775910648752,-151.0,0.00015673,2]
[420284237,1775910648762,-2000.0,0.000157,2]
[420284238,1775910648771,-151.0,0.00015728,2]
[420284239,1775910648781,-172.86,0.00015739,2]
[420284240,1775910648792,-578.36645902,0.00015765,2]
[420284241,1775910648801,-151.0,0.00015783,2]
[420284242,1775910648811,-2000.0,0.000158,2]
[420284243,1775910648820,-151.0,0.00015838,2]
[420284244,1775910648829,-2000.0,0.0001589,2]
[420284245,1775910648842,-151.0,0.00015893,2]
[420284246,1775910648851,-1489.47,0.00015895,2]
[420284247,1775910648860,-268.4095,0.000159,2]
[420284248,1775910648870,-2000.0,0.000159,2]
[420284249,1775910648883,-786.31,0.00015905,2]
[420284250,1775910648892,-986.35,0.00015932,2]
[420284251,1775910648902,-2014.85,0.00015945,2]
[420284252,1775910648916,-151.0,0.00015948,2]
[420284253,1775910648925,-500.0,0.00015959,2]
[420284254,1775910648936,-2000.0,0.00015959,2]
[420284255,1775910648946,-150.0,0.00016,2]
[420284256,1775910648955,-179.58131227,0.00016,2]
[420284257,1775910648967,-2000.0,0.00016,2]
[420284258,1775910648977,-150.0,0.00016,2]
[420284259,1775910648987,-1280.88388878,0.00016001,2]
[420284260,1775910648996,-200.0,0.00016001,2]
[420284261,1775910649008,-174.6191914,0.00016001,2]
[420284262,1775910649019,-771.01748645,0.00016001,2]
[420284263,1775910649029,-181.08010149,0.00016001,2]
[420284264,1775910649039,-578.20924308,0.00016001,2]
[420284265,1775910649051,-290.26104003,0.00016001,2]
[420284266,1775910649063,-151.0,0.00016003,2]
[420284267,1775910649072,-151.0,0.00016058,2]
[420284268,1775910649081,-151.0,0.00016113,2]
[420284269,1775910649090,-8081.28,0.00016116,2]
[420284270,1775910649101,-151.0,0.00016168,2]
[420284271,1775910649111,-786.31,0.00016179,2]
[420284272,1775910649120,-976.58,0.00016206,2]
[420284273,1775910649129,-1140.33904269,0.00016209,30]
[420284274,1775910649138,-506.0,0.00016212,4]
[420284275,1775910649148,-363.19375129,0.00016281,2]
[420284276,1775910649157,-1489.47,0.00016282,2]
[420284277,1775910649166,-15817.75494107,0.00016316,2]
[420284278,1775910649175,-595.14,0.00016437,2]
[420284279,1775910649185,-595.14,0.00016437,2]
[420284280,1775910649196,-595.14,0.00016437,2]
[420284281,1775910649206,-595.14,0.00016437,2]
[420284282,1775910649215,-595.17,0.00016437,2]
[420284283,1775910649224,-1000.0,0.00016438,2]
[420284284,1775910649234,-1000.0,0.00016438,2]
[420284285,1775910649243,-1000.0,0.00016438,2]
[420284286,1775910649252,-1000.0,0.00016438,2]
[420284287,1775910649261,-1000.0,0.00016438,2]
[420284288,1775910649270,-1000.0,0.00016438,2]
[420284289,1775910649280,-1000.0,0.00016438,2]
[420284290,1775910649290,-1000.0,0.00016438,2]
[420284291,1775910649299,-1000.0,0.00016438,2]
[420284292,1775910649309,-1000.0,0.00016438,2]
[420284293,1775910649318,-1000.0,0.00016438,2]
[420284294,1775910649329,-1000.0,0.00016438,2]
[420284295,1775910649338,-1000.0,0.00016438,2]
[420284296,1775910649348,-1000.0,0.00016438,2]
[420284297,1775910649357,-1000.0,0.00016438,2]
[420284298,1775910649368,-1000.0,0.00016438,2]
[420284299,1775910649377,-1000.0,0.00016438,2]
[420284300,1775910649386,-1000.0,0.00016438,2]
[420284301,1775910649395,-1000.0,0.00016438,2]
[420284302,1775910649404,-1000.0,0.00016438,2]
[420284303,1775910649416,-1000.0,0.00016438,2]
[420284304,1775910649425,-1000.0,0.00016438,2]
[420284305,1775910649434,-1000.0,0.00016438,2]
[420284306,1775910649443,-1000.0,0.00016438,2]
[420284307,1775910649452,-1000.0,0.00016438,2]
[420284308,1775910649462,-1000.0,0.00016438,2]
[420284309,1775910649473,-1000.0,0.00016438,2]
[420284310,1775910649482,-1000.0,0.00016438,2]
[420284311,1775910649492,-1000.0,0.00016438,2]
[420284312,1775910649503,-1000.0,0.00016438,2]
[420284313,1775910649514,-1000.0,0.00016438,2]
[420284314,1775910649523,-1000.0,0.00016438,2]
[420284315,1775910649536,-1000.0,0.00016438,2]
[420284316,1775910649549,-1000.0,0.00016438,2]
[420284317,1775910649558,-1000.0,0.00016438,2]
[420284318,1775910649571,-1000.0,0.00016438,2]
[420284319,1775910649585,-1000.0,0.00016438,2]
[420284320,1775910649594,-1000.0,0.00016438,2]
[420284321,1775910649604,-1000.0,0.00016438,2]
[420284322,1775910649616,-1000.0,0.00016438,2]
[420284323,1775910649633,-1000.0,0.00016438,2]
[420284324,1775910649642,-1000.0,0.00016438,2]
[420284325,1775910649651,-1000.0,0.00016438,2]
[420284326,1775910649668,-1000.0,0.00016438,2]
[420284327,1775910649678,-1000.0,0.00016438,2]
[420284328,1775910649688,-981.81818182,0.00016438,2]
[420284329,1775910649700,-981.81818182,0.00016438,2]
[420284330,1775910649711,-981.81818182,0.00016438,2]
[420284331,1775910649722,-981.81818182,0.00016438,2]
[420284332,1775910649732,-981.81818182,0.00016438,2]
[420284333,1775910649743,-981.81818182,0.00016438,2]
[420284334,1775910649753,-981.81818182,0.00016438,2]
[420284335,1775910649768,-981.81818182,0.00016438,2]
[420284336,1775910649778,-981.81818182,0.00016438,2]
[420284337,1775910649789,-981.81818182,0.00016438,2]
[420284338,1775910649800,-981.81818182,0.00016438,2]
[420284339,1775910649810,-981.81818182,0.00016438,2]
[420284340,1775910649821,-981.81818182,0.00016438,2]
[420284341,1775910649830,-981.81818182,0.00016438,2]
[420284342,1775910649843,-981.81818182,0.00016438,2]
[420284343,1775910649857,-981.81818182,0.00016438,2]
[420284344,1775910649866,-981.81818182,0.00016438,2]
[420284345,1775910649877,-981.81818182,0.00016438,2]
[420284346,1775910649896,-981.81818182,0.00016438,2]
[420284347,1775910649906,-981.81818182,0.00016438,2]
[420284348,1775910649915,-981.81818182,0.00016438,2]
[420284349,1775910649925,-981.81818182,0.00016438,2]
[420284350,1775910649945,-981.81818182,0.00016438,2]
[420284351,1775910649954,-981.81818182,0.00016438,2]
[420284352,1775910649964,-981.81818182,0.00016438,2]
[420284353,1775910649975,-981.81818182,0.00016438,2]
[420284354,1775910649988,-943.63636363,0.00016438,2]
[420284355,1775910649997,-943.63636363,0.00016438,2]
[420284356,1775910650006,-943.63636363,0.00016438,2]
[420284357,1775910650017,-943.63636363,0.00016438,2]
[420284358,1775910650031,-943.63636363,0.00016438,2]
[420284359,1775910650040,-943.63636363,0.00016438,2]
[420284360,1775910650049,-943.63636363,0.00016438,2]
[420284361,1775910650060,-943.63636363,0.00016438,2]
[420284362,1775910650070,-943.63636363,0.00016438,2]
[420284363,1775910650080,-943.63636363,0.00016438,2]
[420284364,1775910650089,-943.63636363,0.00016438,2]
[420284365,1775910650099,-943.63636363,0.00016438,2]
[420284366,1775910650109,-943.63636363,0.00016438,2]
[420284367,1775910650118,-943.63636363,0.00016438,2]
[420284368,1775910650127,-943.63636363,0.00016438,2]
[420284369,1775910650137,-943.63636363,0.00016438,2]
[420284370,1775910650148,-943.63636363,0.00016438,2]
[420284371,1775910650157,-943.63636363,0.00016438,2]
[420284372,1775910650166,-150.0,0.00016438,2]
[420284373,1775910650177,-786.75,0.00016453,2]
[420284374,1775910650186,-1328.27659266,0.00016549,2]
[420284375,1775910650196,-200.0,0.00016549,2]
[420284376,1775910650205,-743.50770149,0.00016549,2]
[420284377,1775910650214,-189.92000982,0.00016667,2]
[420284378,1775910650224,-1489.47,0.0001667,2]
[420284379,1775910650233,-234.0,0.00016712,2]
[420284380,1775910650242,-483.75,0.00016794,2]
[420284381,1775910650251,-326.7493051,0.0001691,2]
[420284382,1775910650260,-9236.96688737,0.0001697,2]
[420284383,1775910650269,-172.88,0.00016986,2]
[420284384,1775910650278,-150.0,0.00016986,2]
[420284385,1775910650287,-350.0,0.00017,2]
[420284386,1775910650296,-649.66,0.00017019,2]
[420284387,1775910650305,-6292.16,0.00017019,2]
[420284388,1775910650314,-7418.36,0.00017019,2]
[420284389,1775910650323,-1016.77,0.00017019,2]
[420284390,1775910650332,-1489.47,0.00017058,2]
[420284391,1775910650341,-1377.42282659,0.00017097,2]
[420284392,1775910650351,-310.4377,0.000173,2]
[420284393,1775910650359,-879.82,0.00017448,2]
[420284394,1775910650368,-229.11244,0.00017452,7]
[420284395,1775910650378,-222.711668,0.00017452,7]
[420284396,1775910650387,-380.999345,0.00017495,2]
[420284397,1775910650396,-186.870094,0.00017495,2]
[420284398,1775910650405,-15817.75494107,0.00017511,2]
[420284399,1775910650414,-150.0,0.00017534,2]
[420284400,1775910650423,-652.40522126,0.00017628,2]
[420284401,1775910650432,-1428.38747117,0.00017645,2]
[420284402,1775910650442,-228.66639528,0.00017703,2]
[420284403,1775910650451,-506.0,0.00017767,6]
[420284404,1775910650460,-1116.0,0.00018006,2]
[420284405,1775910650469,-150.0,0.00018082,2]
[420284406,1775910650479,-599.60298507,0.00018192,2]
[420284407,1775910650488,-1481.23780761,0.00018193,2]
[420284408,1775910650497,-941.49458548,0.00018278,2]
[420284409,1775910650506,-192.31953846,0.00018575,2]
[420284410,1775910650515,-359.0469,0.000186,2]
[420284411,1775910650524,-228.55579324,0.00018628,2]
[420284412,1775910650533,-173.50528788,0.0001863,2]
[420284413,1775910650542,-202.85035273,0.00018647,2]
[420284414,1775910650551,-15817.75494107,0.00018705,2]
[420284415,1775910650559,-1536.0436065,0.00018741,2]
[420284416,1775910650568,-2243.47,0.00018902,2]
[420284417,1775910650577,-500.0,0.00018904,2]
[420284418,1775910650586,-500.0,0.00018904,2]
[420284419,1775910650596,-500.0,0.00018904,2]
[420284420,1775910650605,-500.0,0.00018904,2]
[420284421,1775910650614,-356.96961415,0.00018904,2]
[420284422,1775910650623,-400.0,0.00019,2]
[420284423,1775910650632,-322.5,0.00019068,2]
[420284424,1775910650641,-1000.0,0.00019132,7]
[420284425,1775910650651,-259.70787358,0.0001918,2]
[420284426,1775910650660,-232.93,0.00019263,30]
[420284427,1775910650669,-5000.0,0.00019263,30]
[420284428,1775910650679,-5000.0,0.00019263,30]
[420284429,1775910650688,-5000.0,0.00019263,30]
[420284430,1775910650697,-506.0,0.00019323,7]
[420284431,1775910650706,-1257.33,0.000195,2]
[420284432,1775910650715,-322.5,0.00019507,2]
[420284433,1775910650724,-9236.96688737,0.00019578,2]
[420284434,1775910650733,-879.82,0.00019611,2]
[420284435,1775910650743,-652.40522126,0.00019682,2]
[420284436,1775910650753,-172.88,0.00019746,2]
[420284437,1775910650762,-15817.75494107,0.000199,2]
[420284438,1775910650771,-322.5,0.00019945,2]